[Event "CZE-ch Amateurs 2022"]
[Site "Luhacovice"]
[Date "2022.03.17"]
[Round "7.9"]
[White "Sremanak, Slavomir"]
[Black "Merva, Frantisek"]
[Result "1-0"]
[ECO "D31"]
[WhiteElo "2187"]
[BlackElo "2025"]
[Annotator "ChessBase"]
[PlyCount "155"]
[EventDate "2022.03.12"]
[EventType "swiss"]
[EventCountry "CZE"]
[SourceTitle "playchess.com"]
[Source "ChessBase"]
[SourceQuality "1"]
[TimeControl "5400+30"]

1. c4 {[%emt 0:00:06]} e6 {[%emt 0:00:20]} 2. Nc3 {[%emt 0:00:32]} d5 {[%emt 0:00:43]} 3. d4 {[%emt 0:00:18]} c6 {[%emt 0:00:20]} 4. e4 {[%emt 0:01:23]} dxe4 {[%emt 0:01:14]} 5. Nxe4 {[%emt 0:00:20]} Bb4+ {[%emt 0:00:56]} 6. Nc3 {[%emt 0:00:06]} Nf6 {[%emt 0:00:56]} 7. Qb3 {[%emt 0:03:57]} c5 {[%emt 0:06:03]} 8. dxc5 {[%emt 0:04:55]} Nc6 {[%emt 0:00:37]} 9. Nf3 {[%emt 0:01:21]} Bxc5 {[%emt 0:05:59]} 10. Be2 {[%emt 0:00:31]} Qb6 {[%emt 0:04:03]} 11. Qxb6 {[%emt 0:00:40]} Bxb6 {[%emt 0:00:19]} 12. O-O {[%emt 0:00:26]} O-O {[%emt 0:00:04]} 13. Bf4 {[%emt 0:03:04]} Re8 {[%emt 0:08:58]} 14. Na4 {[%emt 0:03:32]} Nd4 {[%emt 0:01:38]} 15. Bd1 {[%emt 0:00:40]} Nxf3+ {[%emt 0:00:16]} 16. Bxf3 {[%emt 0:00:07]} Bd4 {[%emt 0:00:04]} 17. Nc3 {[%emt 0:02:46]} e5 {[%emt 0:00:24]} 18. Bg5 {[%emt 0:01:26]} Rb8 {[%emt 0:03:31]} 19. Rac1 {[%emt 0:05:45]} h6 {[%emt 0:01:29]} 20. Bh4 {[%emt 0:01:12]} g5 {[%emt 0:00:53]} 21. Bg3 {[%emt 0:00:05]} g4 {[%emt 0:00:25]} 22. Bd5 {[%emt 0:03:52]} Nxd5 {[%emt 0:04:33]} 23. Nxd5 {[%emt 0:00:25]} Kg7 {[%emt 0:00:10]} 24. Rfd1 {[%emt 0:19:28]} Bf5 {[%emt 0:04:06]} 25. Rxd4 {[%emt 0:01:42]} exd4 {[%emt 0:00:13]} 26. Bxb8 {[%emt 0:00:07]} Rxb8 {[%emt 0:00:08]} 27. Rd1 {[%emt 0:00:49]} Re8 {[%emt 0:00:31]} 28. Kf1 {[%emt 0:00:32]} Re4 {[%emt 0:03:10]} 29. b3 {[%emt 0:10:53]} h5 {[%emt 0:07:47]} 30. Rd2 {[%emt 0:00:27]} Kg6 {[%emt 0:08:23]} 31. f3 {[%emt 0:01:44]} gxf3 {[%emt 0:00:25]} 32. gxf3 {[%emt 0:00:05]} Rh4 {[%emt 0:03:42]} 33. Kg2 {[%emt 0:00:14]} Be6 {[%emt 0:04:46]} 34. Kg3 {[%emt 0:02:00]} Rh3+ {[%emt 0:00:58]} 35. Kf4 {[%emt 0:00:08]} f6 {[%emt 0:01:01]} 36. Nc7 {[%emt 0:09:24]} Bd7 {[%emt 0:09:49]} 37. b4 {[%emt 0:02:15]} Bc6 {[%emt 0:02:10]} 38. Nd5 {[%emt 0:01:35]} Kf7 {[%emt 0:00:05]} 39. Rf2 {[%emt 0:02:22]} b5 {[%emt 0:00:53]} 40. Ke4 {[%emt 0:00:34]} bxc4 {[%emt 0:00:16]} 41. Kxd4 {[%emt 0:00:07]} c3 {[%emt 0:08:39]} 42. Kc5 {[%emt 0:01:49]} Bb7 {[%emt 0:00:44]} 43. Nxc3 {[%emt 0:00:31]} Bxf3 {[%emt 0:00:50]} 44. Nb5 {[%emt 0:00:43]} a6 {[%emt 0:04:18]} 45. Nd4 {[%emt 0:00:11]} Be4 {[%emt 0:00:28]} 46. Rf4 {[%emt 0:03:46]} Bb1 {[%emt 0:01:20]} 47. Nf3 {[%emt 0:00:20]} Kg6 {[%emt 0:01:35]} 48. a4 {[%emt 0:00:13]} Bc2 {[%emt 0:00:09]} 49. a5 {[%emt 0:02:04]} Ba4 {[%emt 0:01:00]} 50. Kb6 {[%emt 0:00:32]} Bb5 {[%emt 0:00:15]} 51. Nd4 {[%emt 0:00:10]} Bd3 {[%emt 0:02:04]} 52. Rf2 {[%emt 0:00:15]} Rh4 {[%emt 0:00:30]} 53. Kc5 {[%emt 0:01:38]} f5 {[%emt 0:00:11]} 54. b5 {[%emt 0:01:37]} axb5 {[%emt 0:00:23]} 55. a6 {[%emt 0:00:08]} Be4 {[%emt 0:01:24]} 56. a7 {[%emt 0:00:42]} Rh3 {[%emt 0:00:00]} 57. Nxf5 {[%emt 0:00:24]} Ra3 {[%emt 0:01:10]} 58. Nd6 {[%emt 0:00:41]} Ba8 {[%emt 0:01:29]} 59. Nxb5 {[%emt 0:02:08]} Ra1 {[%emt 0:00:04]} 60. Rf8 {[%emt 0:01:02]} Bh1 {[%emt 0:00:05]} 61. Kb6 {[%emt 0:01:21]} Kg5 {[%emt 0:00:13]} 62. Rg8+ {[%emt 0:01:31]} Kh4 {[%emt 0:00:12]} 63. Rg3 {[%emt 0:00:10]} Ra2 {[%emt 0:00:26]} 64. Nd4 {[%emt 0:00:26]} Be4 {[%emt 0:00:49]} 65. Nf3+ {[%emt 0:02:20]} Bxf3 {[%emt 0:00:06]} 66. Rxf3 {[%emt 0:00:05]} Rb2+ {[%emt 0:00:23]} 67. Kc5 {[%emt 0:01:56]} Ra2 {[%emt 0:00:07]} 68. Rf7 {[%emt 0:00:30]} Kh3 {[%emt 0:00:11]} 69. Kb4 {[%emt 0:01:45]} h4 {[%emt 0:00:22]} 70. Rf3+ {[%emt 0:00:08]} Kxh2 {[%emt 0:01:46]} 71. Ra3 {[%emt 0:00:08]} Rxa3 {[%emt 0:00:33]} 72. Kxa3 {[%emt 0:00:05]} Kg1 {[%emt 0:00:08]} 73. a8=Q {[%emt 0:00:11]} h3 {[%emt 0:00:03]} 74. Qg8+ {[%emt 0:00:19]} Kh1 {[%emt 0:00:15]} 75. Qd5+ {[%emt 0:00:06]} Kg1 {[%emt 0:00:07]} 76. Qd4+ {[%emt 0:00:20]} Kh1 {[%emt 0:00:07]} 77. Qe4+ {[%emt 0:00:08]} Kg1 {[%emt 0:02:53]} 78. Qg4+ {[%emt 0:00:06]} 1-0

[Event "CZE-ch Amateurs 2022"]
[Site "Luhacovice"]
[Date "2022.03.17"]
[Round "7.10"]
[White "Navratilik, Pavel"]
[Black "Novotny, Jaroslav"]
[Result "0-1"]
[ECO "E62"]
[WhiteElo "2082"]
[BlackElo "2190"]
[Annotator "ChessBase"]
[PlyCount "104"]
[EventDate "2022.03.12"]
[EventType "swiss"]
[EventCountry "CZE"]
[SourceTitle "playchess.com"]
[Source "ChessBase"]
[SourceQuality "1"]
[TimeControl "5400+30"]

1. d4 {[%emt 0:00:06]} g6 {[%emt 0:00:07]} 2. c4 {[%emt 0:00:06]} Bg7 {[%emt 0:00:06]} 3. Nc3 {[%emt 0:00:13]} d6 {[%emt 0:00:30]} 4. g3 {[%emt 0:00:42]} Nf6 {[%emt 0:01:08]} 5. Bg2 {[%emt 0:00:23]} O-O {[%emt 0:00:13]} 6. Nf3 {[%emt 0:00:18]} Nc6 {[%emt 0:01:05]} 7. O-O {[%emt 0:00:52]} Bf5 {[%emt 0:00:41]} 8. d5 {[%emt 0:03:44]} Na5 {[%emt 0:00:30]} 9. Nd2 {[%emt 0:01:21]} c5 {[%emt 0:00:34]} 10. dxc6 {[%emt 0:07:09]} Nxc6 {[%emt 0:02:30]} 11. e4 {[%emt 0:00:51]} Bg4 {[%emt 0:08:26]} 12. f3 {[%emt 0:06:17]} Be6 {[%emt 0:01:56]} 13. Nd5 {[%emt 0:01:09]} Rc8 {[%emt 0:20:02]} 14. Rb1 {[%emt 0:08:26]} a6 {[%emt 0:08:23]} 15. Kh1 {[%emt 0:07:55]} b5 {[%emt 0:01:35]} 16. b3 {[%emt 0:07:24]} bxc4 {[%emt 0:03:21]} 17. bxc4 {[%emt 0:07:43]} Nd7 {[%emt 0:01:05]} 18. f4 {[%emt 0:04:15]} Nc5 {[%emt 0:01:50]} 19. f5 {[%emt 0:08:33]} Bxd5 {[%emt 0:01:22]} 20. cxd5 {[%emt 0:01:37]} Ne5 {[%emt 0:00:27]} 21. Nb3 {[%emt 0:04:56]} Na4 {[%emt 0:04:58]} 22. Bd2 {[%emt 0:03:58]} Nc3 {[%emt 0:11:33]} 23. Bxc3 {[%emt 0:00:07]} Rxc3 {[%emt 0:00:01]} 24. Rc1 {[%emt 0:00:43]} Rxc1 {[%emt 0:03:21]} 25. Qxc1 {[%emt 0:00:22]} Qb6 {[%emt 0:04:05]} 26. fxg6 {[%emt 0:01:19]} hxg6 {[%emt 0:01:22]} 27. Bf3 {[%emt 0:05:11]} a5 {[%emt 0:02:46]} 28. Be2 {[%emt 0:03:40]} a4 {[%emt 0:01:13]} 29. Na1 {[%emt 0:02:35]} Qd4 {[%emt 0:00:56]} 30. Qc2 {[%emt 0:01:05]} Rb8 {[%emt 0:00:23]} 31. Rb1 {[%emt 0:03:34]} Rxb1+ {[%emt 0:01:52]} 32. Qxb1 {[%emt 0:00:18]} Kh7 {[%emt 0:00:10]} 33. Qd1 {[%emt 0:04:05]} Qxe4+ {[%emt 0:00:32]} 34. Kg1 {[%emt 0:00:10]} Nc4 {[%emt 0:05:14]} 35. Nc2 {[%emt 0:01:59]} Bh6 {[%emt 0:03:02]} 36. Qd3 {[%emt 0:01:03]} Be3+ {[%emt 0:02:08]} 37. Nxe3 {[%emt 0:01:01]} Qxe3+ {[%emt 0:00:08]} 38. Kf1 {[%emt 0:01:05]} Qxd3 {[%emt 0:01:39]} 39. Bxd3 {[%emt 0:00:18]} Ne3+ {[%emt 0:00:23]} 40. Ke2 {[%emt 0:00:57]} Nxd5 {[%emt 0:00:02]} 41. Bc4 {[%emt 0:00:17]} Nc7 {[%emt 0:00:50]} 42. Kd2 {[%emt 0:01:26]} d5 {[%emt 0:00:13]} 43. Be2 {[%emt 0:00:17]} e5 {[%emt 0:00:47]} 44. Kc3 {[%emt 0:00:42]} d4+ {[%emt 0:00:42]} 45. Kb4 {[%emt 0:00:55]} Nd5+ {[%emt 0:00:10]} 46. Kc4 {[%emt 0:00:42]} Nc3 {[%emt 0:00:05]} 47. Bd3 {[%emt 0:00:51]} f5 {[%emt 0:00:28]} 48. a3 {[%emt 0:00:13]} Kg7 {[%emt 0:00:10]} 49. Bc2 {[%emt 0:00:13]} Kf6 {[%emt 0:00:12]} 50. Kb4 {[%emt 0:01:07]} e4 {[%emt 0:00:22]} 51. Kc4 {[%emt 0:00:55]} Ke5 {[%emt 0:00:06]} 52. h4 {[%emt 0:00:11]} d3 {[%emt 0:02:41]} 0-1

[Event "CZE-ch Amateurs 2022"]
[Site "Luhacovice"]
[Date "2022.03.17"]
[Round "7.11"]
[White "Bures, Vit"]
[Black "Dvorak, Milan"]
[Result "1-0"]
[ECO "D35"]
[WhiteElo "2121"]
[BlackElo "1838"]
[Annotator "ChessBase"]
[PlyCount "93"]
[EventDate "2022.03.12"]
[EventType "swiss"]
[EventCountry "CZE"]
[SourceTitle "playchess.com"]
[Source "ChessBase"]
[SourceQuality "1"]
[TimeControl "5400+30"]

1. d4 {[%emt 0:00:05]} d5 {[%emt 0:00:19]} 2. c4 {[%emt 0:00:03]} e6 {[%emt 0:00:10]} 3. Nc3 {[%emt 0:00:04]} Nf6 {[%emt 0:00:07]} 4. cxd5 {[%emt 0:00:02]} Nxd5 {[%emt 0:01:21]} 5. e4 {[%emt 0:00:03]} Nxc3 {[%emt 0:01:09]} 6. bxc3 {[%emt 0:00:03]} Be7 {[%emt 0:00:44]} 7. Nf3 {[%emt 0:00:24]} O-O {[%emt 0:02:48]} 8. Bc4 {[%emt 0:07:41]} Nd7 {[%emt 0:20:07]} 9. O-O {[%emt 0:01:50]} Nb6 {[%emt 0:02:11]} 10. Bb3 {[%emt 0:03:43]} c5 {[%emt 0:00:10]} 11. a4 {[%emt 0:01:13]} c4 {[%emt 0:10:05]} 12. Bc2 {[%emt 0:02:21]} Bd7 {[%emt 0:00:43]} 13. Bf4 {[%emt 0:03:41]} f5 {[%emt 0:32:03]} 14. exf5 {[%emt 0:10:50]} exf5 {[%emt 0:01:51]} 15. d5 {[%emt 0:02:56]} Bf6 {[%emt 0:01:35]} 16. Be5 {[%emt 0:02:59]} Bxe5 {[%emt 0:06:09]} 17. Nxe5 {[%emt 0:02:03]} Qc7 {[%emt 0:00:39]} 18. Qd4 {[%emt 0:00:55]} Rac8 {[%emt 0:00:36]} 19. a5 {[%emt 0:00:45]} Na8 {[%emt 0:00:31]} 20. d6 {[%emt 0:00:55]} Qd8 {[%emt 0:03:09]} 21. Qd5+ {[%emt 0:00:24]} Kh8 {[%emt 0:00:30]} 22. Nf7+ {[%emt 0:00:10]} Rxf7 {[%emt 0:00:03]} 23. Qxf7 {[%emt 0:00:05]} Bc6 {[%emt 0:09:02]} 24. Qxf5 {[%emt 0:01:26]} g6 {[%emt 0:00:41]} 25. Qe5+ {[%emt 0:00:12]} Kg8 {[%emt 0:00:21]} 26. Rfe1 {[%emt 0:01:12]} Qd7 {[%emt 0:00:48]} 27. Rad1 {[%emt 0:00:39]} Rd8 {[%emt 0:00:56]} 28. Be4 {[%emt 0:03:21]} b6 {[%emt 0:02:34]} 29. Bd5+ {[%emt 0:01:35]} Bxd5 {[%emt 0:00:12]} 30. Qxd5+ {[%emt 0:00:10]} Kf8 {[%emt 0:00:19]} 31. Re7 {[%emt 0:00:21]} Qf5 {[%emt 0:00:34]} 32. Qxf5+ {[%emt 0:00:33]} gxf5 {[%emt 0:00:12]} 33. Rxh7 {[%emt 0:00:08]} Kg8 {[%emt 0:00:36]} 34. Rxa7 {[%emt 0:00:06]} bxa5 {[%emt 0:00:01]} 35. Rxa5 {[%emt 0:00:16]} Nb6 {[%emt 0:00:54]} 36. Rxf5 {[%emt 0:00:07]} Nd7 {[%emt 0:00:12]} 37. h4 {[%emt 0:00:12]} Kg7 {[%emt 0:01:02]} 38. Rd4 {[%emt 0:00:30]} Nf6 {[%emt 0:00:20]} 39. g4 {[%emt 0:00:13]} Kg6 {[%emt 0:00:16]} 40. h5+ {[%emt 0:00:09]} Kg7 {[%emt 0:00:50]} 41. Kg2 {[%emt 0:00:17]} Nh7 {[%emt 0:00:31]} 42. g5 {[%emt 0:00:42]} Nf8 {[%emt 0:00:08]} 43. Re5 {[%emt 0:00:05]} Nd7 {[%emt 0:01:25]} 44. Re7+ {[%emt 0:00:05]} Kf8 {[%emt 0:01:03]} 45. h6 {[%emt 0:00:36]} Kg8 {[%emt 0:00:19]} 46. f4 {[%emt 0:01:00]} Nf8 {[%emt 0:00:35]} 47. d7 {[%emt 0:00:14]} 1-0

[Event "CZE-ch Amateurs 2022"]
[Site "Luhacovice"]
[Date "2022.03.17"]
[Round "7.12"]
[White "Benes, Miroslav"]
[Black "Urban, Zdenek"]
[Result "0-1"]
[ECO "D87"]
[WhiteElo "1929"]
[BlackElo "2093"]
[Annotator "NA"]
[PlyCount "94"]
[EventDate "2022.03.12"]
[EventType "swiss"]
[EventCountry "CZE"]
[SourceTitle "playchess.com"]
[Source "ChessBase"]
[SourceQuality "1"]
[TimeControl "5400+30"]

1. d4 {[%emt 0:00:35]} Nf6 {[%emt 0:00:08]} 2. c4 {[%emt 0:00:47]} g6 {[%emt 0:00:45]} 3. Nc3 {[%emt 0:00:24]} d5 {[%emt 0:00:15]} 4. cxd5 {[%emt 0:00:21]} Nxd5 {[%emt 0:00:06]} 5. e4 {[%emt 0:00:06]} Nxc3 {[%emt 0:00:07]} 6. bxc3 {[%emt 0:00:03]} Bg7 {[%emt 0:00:07]} 7. Bc4 {[%emt 0:00:03]} c5 {[%emt 0:00:51]} 8. Ne2 {[%emt 0:00:04]} Nc6 {[%emt 0:00:09]} 9. Be3 {[%emt 0:00:12]} O-O {[%emt 0:00:17]} 10. O-O {[%emt 0:00:07]} Qc7 {[%emt 0:00:36]} 11. Rc1 {[%emt 0:00:05]} Rd8 {[%emt 0:02:47]} 12. Qd2 {[%emt 0:00:33]} Ne5 {[%emt 0:08:24]} 13. Bb3 {[%emt 0:15:23]} ({Much weaker is} 13. Bf4 {[#]} Nxc4 $1 14. Bxc7 Nxd2 $15) 13... Ng4 {[%emt 0:01:37]} 14. Bf4 {[%emt 0:00:29]} e5 {[%emt 0:00:15]} 15. Bg5 {[%emt 0:07:50]} exd4 {[%emt 0:00:46]} 16. Ng3 {[%emt 0:11:04]} Rd6 {[%emt 0:00:47]} 17. Bf4 {[%emt 0:07:05]} Ne5 {[%emt 0:00:13]} 18. cxd4 {[%emt 0:01:36]} Qd8 {[%emt 0:01:26]} 19. d5 {[%emt 0:10:08]} b6 {[%emt 0:00:51]} 20. Bg5 {[%emt 0:08:09]} f6 {[%emt 0:01:02]} 21. Bh6 {[%emt 0:01:21]} Bxh6 {[%emt 0:01:17]} 22. Qxh6 {[%emt 0:00:01]} Ba6 {[%emt 0:00:59]} 23. Rfd1 {[%emt 0:04:44]} c4 {[%emt 0:00:09]} 24. Bc2 {[%emt 0:00:50]} b5 {[%emt 0:00:06]} 25. Ne2 {[%emt 0:01:51]} Qb6 {[%emt 0:03:15]} 26. h3 {[%emt 0:04:02]} Re8 $11 {[%emt 0:01:19]} 27. Nd4 {[%emt 0:01:17]} Bc8 {[%emt 0:00:23]} 28. Qe3 {[%emt 0:03:43]} a5 {[%emt 0:01:20]} 29. f4 {[%emt 0:00:42]} Nd7 {[%emt 0:02:36]} 30. Qf3 {[%emt 0:02:51]} Bb7 {[%emt 0:02:44]} 31. Kh1 {[%emt 0:00:28]} f5 {[%emt 0:01:03]} 32. Nxf5 {[%emt 0:14:16]} gxf5 {[%emt 0:02:20]} 33. e5 {[%emt 0:00:07]} Rg6 {[%emt 0:04:48]} 34. Bxf5 {[%emt 0:00:26]} Rg7 {[%emt 0:00:45]} 35. Qh5 {[%emt 0:02:29]} Rd8 {[%emt 0:04:29]} 36. Be6+ {[%emt 0:00:47]} Kh8 {[%emt 0:00:21]} 37. Rc2 {[%emt 0:01:55]} Qe3 {[%emt 0:03:40]} 38. Qh4 {[%emt 0:00:25]} Rf8 {[%emt 0:00:15]} 39. Bxd7 {[%emt 0:02:04]} Rxd7 {[%emt 0:00:03]} 40. e6 {[%emt 0:00:07]} Rxd5 {[%emt 0:04:34]} 41. Re1 {[%emt 0:00:44]} Qd4 {[%emt 0:00:57]} 42. e7 {[%emt 0:00:34]} Re8 {[%emt 0:00:26]} 43. Re5 {[%emt 0:00:38]} Rd6 {[%emt 0:04:07]} 44. Rce2 {[%emt 0:00:07]} Rg6 {[%emt 0:01:46]} 45. Qh5 {[%emt 0:00:52]} Bc6 {[%emt 0:02:37]} 46. Kh2 {[%emt 0:00:34]} Qxf4+ {[%emt 0:00:40]} 47. Kh1 {[%emt 0:00:15]} Qf1+ {[%emt 0:00:13]} 0-1

[Event "CZE-ch Amateurs 2022"]
[Site "Luhacovice"]
[Date "2022.03.17"]
[Round "7.13"]
[White "Jun, Rudolf"]
[Black "Malinovsky, Petr"]
[Result "1-0"]
[ECO "D31"]
[WhiteElo "2215"]
[BlackElo "1965"]
[Annotator "ChessBase"]
[PlyCount "73"]
[EventDate "2022.03.12"]
[EventType "swiss"]
[EventCountry "CZE"]
[SourceTitle "playchess.com"]
[Source "ChessBase"]
[SourceQuality "1"]
[TimeControl "5400+30"]

1. d4 {[%emt 0:00:06]} d5 {[%emt 0:00:07]} 2. c4 {[%emt 0:00:31]} e6 {[%emt 0:00:04]} 3. Nc3 {[%emt 0:00:18]} c6 {[%emt 0:00:07]} 4. e4 {[%emt 0:00:32]} dxe4 {[%emt 0:00:50]} 5. Nxe4 {[%emt 0:00:18]} Bb4+ {[%emt 0:00:20]} 6. Bd2 {[%emt 0:00:16]} Bxd2+ {[%emt 0:04:07]} 7. Qxd2 {[%emt 0:00:15]} Nf6 {[%emt 0:00:19]} 8. Nxf6+ {[%emt 0:03:07]} Qxf6 {[%emt 0:00:08]} 9. Nf3 {[%emt 0:01:21]} b6 {[%emt 0:06:29]} 10. Be2 {[%emt 0:02:17]} Bb7 {[%emt 0:02:33]} 11. a4 {[%emt 0:02:32]} a5 {[%emt 0:04:41]} 12. b4 {[%emt 0:00:57]} O-O {[%emt 0:01:30]} 13. O-O {[%emt 0:00:28]} Rd8 {[%emt 0:02:49]} 14. Rfb1 {[%emt 0:05:16]} Nd7 {[%emt 0:09:18]} 15. bxa5 {[%emt 0:02:31]} Rxa5 {[%emt 0:06:08]} 16. Rxb6 {[%emt 0:00:48]} Ra7 {[%emt 0:00:17]} 17. Rbb1 {[%emt 0:11:47]} c5 {[%emt 0:03:54]} 18. d5 {[%emt 0:05:57]} exd5 {[%emt 0:06:44]} 19. cxd5 {[%emt 0:01:03]} Nb6 {[%emt 0:01:01]} 20. a5 {[%emt 0:23:31]} Bxd5 {[%emt 0:04:08]} 21. Qb2 {[%emt 0:10:52]} Nd7 {[%emt 0:03:47]} 22. a6 {[%emt 0:05:58]} Qxb2 {[%emt 0:06:58]} 23. Rxb2 {[%emt 0:00:10]} Kf8 {[%emt 0:00:51]} 24. Rd2 {[%emt 0:01:00]} Nf6 {[%emt 0:03:57]} 25. Bc4 {[%emt 0:00:57]} Rad7 {[%emt 0:02:21]} 26. Ne5 {[%emt 0:06:58]} Rd6 {[%emt 0:02:04]} 27. f3 {[%emt 0:09:54]} Ke7 {[%emt 0:11:46]} 28. a7 {[%emt 0:01:37]} Ba8 {[%emt 0:01:49]} 29. Rxd6 {[%emt 0:00:34]} Rxd6 {[%emt 0:00:30]} 30. Rb1 {[%emt 0:00:13]} Nd7 {[%emt 0:03:49]} 31. Rb8 {[%emt 0:02:51]} Nxe5 {[%emt 0:01:18]} 32. Rxa8 {[%emt 0:00:15]} Rd1+ {[%emt 0:00:50]} 33. Kf2 {[%emt 0:00:15]} Ra1 {[%emt 0:00:03]} 34. Bd5 {[%emt 0:00:53]} Nd7 {[%emt 0:03:55]} 35. Bc6 {[%emt 0:00:43]} Kd6 {[%emt 0:00:54]} 36. Bxd7 {[%emt 0:00:26]} Kxd7 {[%emt 0:00:25]} 37. Rf8 {[%emt 0:00:07]} 1-0

[Event "CZE-ch Amateurs 2022"]
[Site "Luhacovice"]
[Date "2022.03.17"]
[Round "7.15"]
[White "Cagasik, Tomas"]
[Black "Novotny, Josef"]
[Result "1-0"]
[ECO "C01"]
[WhiteElo "2177"]
[BlackElo "2033"]
[Annotator "ChessBase"]
[PlyCount "113"]
[EventDate "2022.03.12"]
[EventType "swiss"]
[EventCountry "CZE"]
[SourceTitle "playchess.com"]
[Source "ChessBase"]
[SourceQuality "1"]
[TimeControl "5400+30"]

1. d4 {[%emt 0:00:04]} e6 {[%emt 0:00:49]} 2. e4 {[%emt 0:00:17]} d6 {[%emt 0:00:07]} 3. Be3 {[%emt 0:00:23]} g6 {[%emt 0:00:17]} 4. Nc3 {[%emt 0:00:20]} Nh6 {[%emt 0:01:08]} 5. f3 {[%emt 0:00:24]} f6 {[%emt 0:00:27]} 6. Qd2 {[%emt 0:01:41]} Nf7 {[%emt 0:00:11]} 7. O-O-O {[%emt 0:02:48]} Bg7 {[%emt 0:01:00]} 8. h4 {[%emt 0:10:27]} c6 {[%emt 0:00:33]} 9. f4 {[%emt 0:02:21]} b5 {[%emt 0:00:56]} 10. h5 {[%emt 0:01:30]} g5 {[%emt 0:01:14]} 11. fxg5 {[%emt 0:01:11]} fxg5 {[%emt 0:00:13]} 12. h6 {[%emt 0:00:18]} Bf6 {[%emt 0:00:40]} 13. Nf3 {[%emt 0:06:15]} g4 {[%emt 0:05:37]} 14. Nh2 {[%emt 0:02:03]} e5 {[%emt 0:00:30]} 15. d5 {[%emt 0:02:33]} b4 {[%emt 0:00:57]} 16. Ne2 {[%emt 0:00:46]} Bg5 {[%emt 0:05:25]} 17. dxc6 {[%emt 0:02:11]} Bxe3 {[%emt 0:02:32]} 18. Qxe3 {[%emt 0:00:13]} Nxc6 {[%emt 0:00:16]} 19. Ng3 {[%emt 0:01:20]} Be6 {[%emt 0:03:49]} 20. Bb5 {[%emt 0:02:56]} Rc8 {[%emt 0:02:32]} 21. Nf5 {[%emt 0:09:04]} Bxf5 {[%emt 0:05:32]} 22. exf5 {[%emt 0:00:29]} O-O {[%emt 0:00:35]} 23. Nxg4 {[%emt 0:09:21]} Kh8 {[%emt 0:02:08]} 24. Rh5 {[%emt 0:05:55]} Rg8 {[%emt 0:12:47]} 25. Qe4 {[%emt 0:03:56]} Rg5 {[%emt 0:14:07]} 26. Rh4 {[%emt 0:10:41]} Ne7 {[%emt 0:08:32]} 27. Ne3 {[%emt 0:02:35]} Rg3 {[%emt 0:01:43]} 28. Rg4 {[%emt 0:04:15]} Rxg4 {[%emt 0:08:13]} 29. Qxg4 {[%emt 0:03:14]} Nxh6 {[%emt 0:01:43]} 30. Qf3 {[%emt 0:04:29]} Neg8 {[%emt 0:02:26]} 31. Bc4 {[%emt 0:01:17]} Qg5 {[%emt 0:00:25]} 32. Be6 {[%emt 0:00:42]} Rd8 {[%emt 0:00:38]} 33. Kb1 {[%emt 0:02:07]} Nf6 {[%emt 0:01:23]} 34. Nc4 {[%emt 0:00:38]} e4 {[%emt 0:01:11]} 35. Qh3 {[%emt 0:00:59]} d5 {[%emt 0:01:46]} 36. Ne5 {[%emt 0:00:28]} Qf4 {[%emt 0:00:56]} 37. Nc6 {[%emt 0:02:18]} Rf8 {[%emt 0:01:16]} 38. Rh1 {[%emt 0:03:46]} Nfg4 {[%emt 0:01:26]} 39. Qh4 {[%emt 0:01:59]} Qd6 {[%emt 0:02:05]} 40. Nd4 {[%emt 0:00:42]} Rf6 {[%emt 0:01:45]} 41. Qg5 {[%emt 0:00:30]} Qf8 {[%emt 0:01:08]} 42. Rh4 {[%emt 0:00:33]} e3 {[%emt 0:02:47]} 43. Ne2 {[%emt 0:00:43]} Qd8 {[%emt 0:03:04]} 44. Rxg4 {[%emt 0:00:36]} Nxg4 {[%emt 0:00:52]} 45. Qxg4 {[%emt 0:00:01]} Qf8 {[%emt 0:01:59]} 46. Qd4 {[%emt 0:00:42]} a5 {[%emt 0:00:41]} 47. c3 {[%emt 0:00:20]} bxc3 {[%emt 0:00:13]} 48. bxc3 {[%emt 0:00:16]} Qg7 {[%emt 0:00:06]} 49. Kc2 {[%emt 0:00:32]} h5 {[%emt 0:00:38]} 50. Kd3 {[%emt 0:01:23]} Kh7 {[%emt 0:00:13]} 51. Qxd5 {[%emt 0:00:24]} Qg5 {[%emt 0:00:39]} 52. Qd7+ {[%emt 0:00:29]} Kh6 {[%emt 0:00:14]} 53. Qd5 {[%emt 0:00:22]} Rf8 {[%emt 0:00:12]} 54. Qe4 {[%emt 0:00:28]} Rd8+ {[%emt 0:00:17]} 55. Nd4 {[%emt 0:00:17]} e2 {[%emt 0:01:57]} 56. Qxe2 {[%emt 0:00:27]} Qh4 {[%emt 0:00:15]} 57. Bb3 {[%emt 0:00:48]} 1-0

[Event "CZE-ch Amateurs 2022"]
[Site "Luhacovice"]
[Date "2022.03.17"]
[Round "7.16"]
[White "Husek, Martin"]
[Black "Novotny, Lubomir"]
[Result "1-0"]
[ECO "A40"]
[WhiteElo "2167"]
[BlackElo "1902"]
[Annotator "ChessBase"]
[PlyCount "53"]
[EventDate "2022.03.12"]
[EventType "swiss"]
[EventCountry "CZE"]
[SourceTitle "playchess.com"]
[Source "ChessBase"]
[SourceQuality "1"]
[TimeControl "5400+30"]

1. e4 {[%emt 0:00:37]} c5 {[%emt 0:01:02]} 2. Nf3 {[%emt 0:00:11]} g6 {[%emt 0:00:14]} 3. d4 {[%emt 0:01:44]} Bg7 {[%emt 0:01:06]} 4. c3 {[%emt 0:03:18]} b6 {[%emt 0:05:36]} 5. Bd3 {[%emt 0:00:37]} Bb7 {[%emt 0:00:43]} 6. O-O {[%emt 0:00:22]} e6 {[%emt 0:00:26]} 7. Na3 {[%emt 0:02:33]} Ne7 {[%emt 0:00:28]} 8. Nb5 {[%emt 0:00:25]} d6 {[%emt 0:00:24]} 9. Bf4 {[%emt 0:01:14]} Nc8 {[%emt 0:00:46]} 10. dxc5 {[%emt 0:11:31]} bxc5 {[%emt 0:00:25]} 11. Bc4 {[%emt 0:00:11]} O-O {[%emt 0:00:37]} 12. Nxd6 {[%emt 0:01:02]} Bc6 {[%emt 0:03:39]} 13. Nxc8 {[%emt 0:09:52]} Qxc8 {[%emt 0:11:20]} 14. Qe2 {[%emt 0:00:23]} Nd7 {[%emt 0:02:26]} 15. h4 {[%emt 0:00:43]} e5 {[%emt 0:00:42]} 16. Bg3 {[%emt 0:05:15]} Qb7 {[%emt 0:01:51]} 17. Rfe1 {[%emt 0:01:36]} Rae8 {[%emt 0:00:22]} 18. Qc2 {[%emt 0:08:21]} Nb6 {[%emt 0:08:44]} 19. Nd2 {[%emt 0:08:25]} Bh6 {[%emt 0:01:07]} 20. Bf1 {[%emt 0:00:19]} Bxd2 {[%emt 0:09:11]} 21. Qxd2 {[%emt 0:00:13]} Bxe4 {[%emt 0:00:31]} 22. f3 {[%emt 0:03:14]} Rd8 {[%emt 0:03:18]} 23. Qh6 {[%emt 0:10:11]} Bf5 {[%emt 0:01:48]} 24. Rxe5 {[%emt 0:02:18]} c4 {[%emt 0:11:13]} 25. Rxf5 {[%emt 0:00:34]} gxf5 {[%emt 0:00:12]} 26. Qg5+ {[%emt 0:00:11]} Kh8 {[%emt 0:00:12]} 27. Qf6+ {[%emt 0:00:13]} 1-0